Cogmind - Beta 16.1 @@@ ROGUE MODE // 2026.02.12 @ 00:09:20 Player: SunShine214 Result: Destroyed by D-53 Grenadier with Mini Grenade Launcher Performance ------------- Evolutions (0) 0 Regions Visited (2) 400 Robots Destroyed (28) 140 Value Destroyed (550) 550 Prototype IDs (0) 0 Alien Tech Used (0) 0 Bonus (60) 60 TOTAL SCORE: 1150 Bonus ------- Follower Combat Kills 60 Cogmind --------- Core Integrity 0/250 Matter 173/300 Energy 100/100 System Corruption 2% Temperature Cool (0) Movement Treading (160) Location -10/Mines Parts ------- > --- POWER (1) -------- (None) > --- PROPULSION (2) --- Light Treads > --- UTILITY (2) ------ Small Storage Unit Structural Scanner > --- WEAPON (2) ------- (None) > --- INVENTORY (8) ---- Ion Engine Light Treads Utility Shielding Hacking Suite Hacking Suite Small Laser Mining Laser Peak State ------------ > --- POWER ------------ Ion Engine > --- PROPULSION ------- Light Treads Light Treads > --- UTILITY ---------- Improved Terrain Scanner Terrain Scan Processor > --- WEAPON ----------- Assault Rifle Assault Rifle > --- INVENTORY -------- Aluminum Leg Aluminum Leg Structural Scanner Assault Rifle Mining Laser [Rating: 10] Favorites ----------- Power Ion Engine Engine Ion Engine Power Core Light Nuclear Core Propulsion Light Treads Treads Light Treads Leg Aluminum Leg Utility Terrain Scan Processor Device Improved Terrain Scanner Storage Small Storage Unit Processor Terrain Scan Processor Weapon Assault Rifle Energy Gun Small Laser Ballistic Gun Assault Rifle Launcher Grenade Launcher Special Weapon Mining Laser Build | -11 -10 -10 ------- Run | Yrd Mat Min Slots Evolved . | . . . Power . | . . . Propulsion . | . . . Utility . | . . . Weapon . | . . . Parts Attached 20 | 7 11 2 Power 3 | 1 1 1 Engine 2 | 1 1 . Core 1 | . . 1 Reactor . | . . . Propulsion 6 | 2 3 1 Treads 5 | 2 2 1 Leg 1 | . 1 . Wheel . | . . . Hover . | . . . Flight . | . . . Utility 4 | 2 2 . Device 2 | 1 1 . Storage 1 | 1 . . Processor 1 | . 1 . Hackware . | . . . Protection . | . . . Artifact . | . . . Weapon 7 | 2 5 . Energy Gun 1 | . 1 . Energy Cannon . | . . . Ballistic Gun 4 | 2 2 . Ballistic Cannon . | . . . Launcher 1 | . 1 . Special Weapon 1 | . 1 . Impact Weapon . | . . . Slashing Weapon . | . . . Piercing Weapon . | . . . Special Melee Weapon . | . . . Unidentified Prototypes . | . . . Parts Lost 10 | . 6 4 Power 2 | . 1 1 Propulsion 2 | . 1 1 Utility 2 | . 2 . Weapon 4 | . 2 2 Highest Loss Streak 4 | . 4 4 To Critical Strikes . | . . . Average Backups 4 | 2 4 6 Power . | . . . Propulsion . | 1 . . Utility 2 | . 2 3 Weapon 1 | . 1 2 Tool/Special . | . . . Unused Backups 6 | . 3 3 Power 1 | . 1 . Propulsion 2 | . 2 . Utility 3 | . . 3 Weapon . | . . . Tool/Special . | . . . Average Slot Usage (%) 94 | . 93 99 Engine 12 | . 13 6 Core 1 | . . 7 Treads 26 | . 26 27 Device 10 | . 9 14 Storage 5 | . 3 14 Processor 7 | . 9 . Energy Gun 4 | . 2 13 Ballistic Gun 19 | . 20 14 Launcher 3 | . 3 . Peak Build Rating 10 | 9 10 10 Average Rating 8 | 6 8 9 On Entrance 5 | . 9 7 Avg Prop Armor Cover (%) 10 | . 10 . Naked Turns . | . . . Heaviest Build 15 | 15 15 14 Greatest Support 40 | 40 40 40 Greatest Overweight (x) . | . . . Average Overweight (x) . | . . . Largest Inventory Capacity 8 | 8 8 8 Average Capacity 6 | 7 5 8 Most Carried 7 | 4 5 7 Average Carried 4 | 2 4 6 Final Capacity 8 | 8 8 8 Final Carried 7 | 4 5 7 Class Distribution -------------------- 68% | Mutant 31% | Scavenger-Mutant Dominant Class ---------------- Mutant | -10/Materials Mutant | -10/Mines Resources | -11 -10 -10 ----------- Run | Yrd Mat Min Matter Collected 736 | 348 330 58 Remotely . | . . . Salvage Created 790 | 248 542 . Parts 59 | 16 43 . Haulers Intercepted 1 | . 1 . Recyclers Shooed 1 | . 1 . Parts Field Recycled . | . . . Retrieved Matter . | . . . Parts Self-Destructed . | . . . Prevented . | . . . Parts Restored . | . . . Kills | -11 -10 -10 ------- Run | Yrd Mat Min Combat Hostiles Destroyed 11 | . 11 . Guns 7 | . 7 . Cannons 1 | . 1 . AOE 3 | . 3 . Classes Destroyed 8 | 3 5 . Worker 5 | 2 3 . Builder 1 | . 1 . Tunneler 5 | 5 . . Hauler 1 | . 1 . Recycler 1 | 1 . . Operator 2 | . 2 . Watcher 2 | . 2 . Grunt 11 | . 11 . Best Kill Streak 7 | 7 7 . Combat Bots Only 4 | . 4 . Max Kills in Single Turn 3 | 1 3 . Gunslinging . | . . . Exploded 2 | . 2 . Melee . | . . . Uniques/NPCs Destroyed . | . . . Combat | -11 -10 -10 -------- Run | Yrd Mat Min Hostile Shots Fired 117 | . 108 9 Missed 23 | . 23 . Hits 94 | . 85 9 Projectile 94 | . 85 9 AOE 8 | . . 8 Critical Strikes 1 | . 1 . Damage Taken 1412 | . 1040 372 Core 258 | . 195 63 Absorbed by Shields . | . . . Core Remaining (%) 100 | 100 . . Volleys Fired 92 | 13 77 2 Largest 2 | 2 2 2 Hottest 120 | 40 120 50 Shots Fired 161 | 26 132 3 Gun 154 | 26 127 1 Cannon . | . . . Launcher 5 | . 3 2 Special 2 | . 2 . Kinetic 149 | 26 122 1 Thermal 7 | . 7 . Explosive 5 | . 3 2 Electromagnetic . | . . . Robot Hit Streak 11 | 8 11 2 Robot Miss Streak 4 | 2 4 1 Penetration Max . | . . . Secondary Targets . | . . . Shots Hit Robots 115 | 18 95 2 Core Hits 51 | 8 38 5 Critical Kills . | . . . Critical Parts Destroyed . | . . . Critical Strikes . | . . . Melee Attacks . | . . . Impact . | . . . Slashing . | . . . Piercing . | . . . Sneak Attacks . | . . . Combat Hostiles . | . . . Follow-up Attacks . | . . . Damage Inflicted 1756 | 233 1490 33 Guns 1388 | 233 1155 . Cannons . | . . . Explosions 333 | . 300 33 Melee . | . . . Ramming 11 | . 11 . Kinetic 1354 | 233 1121 . Thermal 58 | . 58 . Explosive 333 | . 300 33 Electromagnetic . | . . . Impact . | . . . Slashing . | . . . Piercing . | . . . Highest Corruption 2 | . 2 2 Average Corruption 1 | . 1 2 Corruption Purged . | . . . Corruption Blocked . | . . . Effects 4 | . 1 3 Message Errors 1 | . . 1 Matter Fused 1 | . . 1 Heat Flow Errors 1 | . 1 . Data Loss (major) 1 | . . 1 Overload Shots . | . . . Overflow Damage . | . . . Projectiles . | . . . Explosions . | . . . Melee . | . . . Knockbacks . | . . . Impact . | . . . Kinetic . | . . . Secondary . | . . . Self-Inflicted Damage 43 | . . 43 Shots 2 | . . 2 Rammed 2 | . 2 . Targets Rammed 3 | . 3 . Kicked 1 | . 1 . Crushed . | . . . Highest Temperature 229 | . 229 . Average Temperature 31 | . 31 . Received Heat Transfer 615 | . 606 9 Siege Activations . | . . . Martial Activations . | . . . Shielding Activations . | . . . Robots Disrupted . | . . . Combat Hostiles . | . . . Robots Corrupted . | . . . Combat Hostiles . | . . . Parts Fried . | . . . Impact Corruptions . | . . . Robots Melted . | . . . Combat Hostiles . | . . . Parts Melted 1 | . 1 . Heat Transferred 125 | . 125 . Parts Sabotaged . | . . . Parts Stolen . | . . . Parts Stripped . | . . . Power Chain Reactions . | . . . Alert | -11 -10 -10 ------- Run | Yrd Mat Min Maximum Alert Level . | . . . Low Security (%) 100 | 100 100 100 Level 1 . | . . . Level 2 . | . . . Level 3 . | . . . Level 4 . | . . . Level 5 . | . . . High Security . | . . . Max Security . | . . . Peak Influence 143 | 15 143 56 Initial . | . . . Average 27 | 3 33 10 Influence Increases 488 | 40 381 67 Destroy 0b10 Robot/C 260 | . 220 40 Destroy 0b10 Robot/NC 85 | 40 45 . Destroy Leader 76 | . 66 10 Allied During Kill 6 | . . 6 Successful Hack 7 | . 7 . Disable Machine 30 | . 30 . Destroy Structure 24 | . 13 11 Influence Decreases 488 | 40 381 67 Time Decay 423 | 40 327 56 Lost Part 65 | . 54 11 Squads Dispatched 3 | . 3 . Investigation 1 | . 1 . Extermination . | . . . Reinforcement 2 | . 2 . Assault . | . . . Garrison . | . . . Intercept . | . . . Searches Triggered . | . . . Construction Impeded . | . . . Haulers Reinforced . | . . . Active Scanning Responses . | . . . Cargo Convoy Interrupts . | . . . Stealth | -11 -10 -10 --------- Run | Yrd Mat Min Distress Signals 1 | . 1 . Communications Jammed . | . . . Distress Signals . | . . . Times Spotted 23 | . 19 4 Peak Tracking Total 5 | . 5 2 Tactical Retreats . | . . . Traps | -11 -10 -10 ------- Run | Yrd Mat Min Traps Triggered 2 | . 2 . Indirectly . | . . . Trap Hack Attempts . | . . . Triggered . | . . . Disarmed . | . . . Reprogrammed . | . . . Reused . | . . . Traps Extracted . | . . . Installed . | . . . Triggered . | . . . Machines | -11 -10 -10 ---------- Run | Yrd Mat Min Machines Disabled 2 | . 2 . Max in Single Turn 1 | . 1 . Machines Repaired . | . . . Machines Dismantled . | . . . Machines Sabotaged . | . . . Overloaded Fab Kills . | . . . Hacking | -11 -10 -10 --------- Run | Yrd Mat Min Machines Accessed 5 | . 4 1 Terminals 5 | . 4 1 Fabricators . | . . . Repair Stations . | . . . Recycling Units . | . . . Scanalyzers . | . . . Garrison Access . | . . . Total Hacks 12 | . 11 1 Successful 3 | . 3 . Failed 9 | . 8 1 Catastrophic 4 | . 3 1 Database Lockouts . | . . . Manual 5 | . 4 1 Terminals 12 | . 11 1 Fabricators . | . . . Repair Stations . | . . . Recycling Units . | . . . Scanalyzers . | . . . Garrison Access . | . . . Terminal Hacks 2 | . 2 . Branch Access Points 1 | . 1 . Registered Components 1 | . 1 . Fabricator Hacks . | . . . Repair Station Hacks . | . . . Recycling Unit Hacks . | . . . Scanalyzer . | . . . Garrison Access Hacks . | . . . Unauthorized Hacks 1 | . 1 . Terminals 1 | . 1 . Botnet 1 | . 1 . Fabricators . | . . . Repair Stations . | . . . Recycling Units . | . . . Scanalyzers . | . . . Garrison Access . | . . . Data Cores Recovered . | . . . Used . | . . . Hacking Detections 5 | . 4 1 Full Trace Events 1 | . 1 . Feedback Events . | . . . Feedback Blocked . | . . . Robot Schematics Acquired . | . . . Robots Built . | . . . Authchips . | . . . Time . | . . . Total Robot Build Rating . | . . . Part Schematics Acquired . | . . . Parts Built . | . . . Authchips . | . . . Time . | . . . Total Part Build Rating . | . . . Part Studies Acquired . | . . . Parts Repaired . | . . . Time . | . . . Parts Recycled . | . . . Recycled Matter . | . . . Retrieved Matter . | . . . Retrieved Components . | . . . Parts Scanalyzed . | . . . Part Schematics Acquired . | . . . Parts Damaged . | . . . Bothacking | -11 -10 -10 ------------ Run | Yrd Mat Min Used RIF Installer . | . . . Robots Hacked . | . . . Non-combat . | . . . Combat . | . . . Robot Hacks Applied . | . . . Relay Couplers Released . | . . . Fabnet Peak Effective % . | . . . Robots Rewired . | . . . Allies Hacked . | . . . Hacks Repelled . | . . . Allies | -11 -10 -10 -------- Run | Yrd Mat Min Total Allies 2 | . . 2 Largest Group 2 | . . 2 Highest-Rated Group 47 | . . 47 Highest-Rated Ally 31 | . . 31 Total Orders . | . . . Ally Attacks 5 | . . 5 Total Damage 106 | . . 106 Kills 2 | . . 2 Allies Corrupted . | . . . Allies Melted . | . . . Intel | -11 -10 -10 ------- Run | Yrd Mat Min Active Infowar (turns) 1332 | 70 952 310 Terrain 769 | 70 699 . Structural 563 | . 253 310 Robot Analysis Total . | . . . Derelict Logs Recovered 1 | . . 1 Drone Launches . | . . . Drone Recoveries . | . . . Exploration | -11 -10 -10 ------------- Run | Yrd Mat Min Turns Passed 1912 | 162 1440 310 Spaces Moved 946 | 70 694 182 Core 2 | 2 . . Treads 873 | 68 623 182 Legs 71 | . 71 . Wheels . | . . . Hover . | . . . Flight . | . . . Fastest Speed 50 | 50 120 160 Average Speed 156 | 156 155 160 Slowest Speed 160 | 160 160 160 Overloaded Moves . | . . . Propulsion Burnouts . | . . . Robots Hopped . | . . . Potential Cave-ins . | . . . Cave-ins Triggered . | . . . Exploration Rate (%) 43 | 4 85 40 Regions Visited 2 Branch Regions 1 Pre-discovered Areas 1 | . . 1 Known Exits Taken 1 | . 1 . Unknown Exits Taken 1 | 1 . . Scrap Searched . | . . . Spaces Dug . | . . . Terrain Destroyed 25 | . 11 14 Melee . | . . . Projectile 1 | . 1 . AOE 24 | . 10 14 Terrain Rammed . | . . . Walls Destroyed . | . . . Machines Disabled . | . . . Actions | -11 -10 -10 --------- Run | Yrd Mat Min Total 1204 | 93 914 197 Wait 126 | . 116 10 Move 944 | 69 693 182 Hop . | . . . Pick Up 12 | 4 8 . Fast Attach 9 | 7 2 . Attach 4 | . 4 . Detach . | . . . Swap 9 | . 6 3 Drop 5 | . 5 . Fire 92 | 13 77 2 Melee . | . . . Ram . | . . . Kick 1 | . 1 . Crush 2 | . 2 . Escape Stasis . | . . . Rewire . | . . . Trap . | . . . Miscellaneous . | . . . Route ------- -11/Scrapyard -10/Materials (discovered 5 exits: [*Mat x3] / *Min / [Sub]) -10/Mines (discovered 2 exits: [*Mat] / [*Sub]) History --------- Turn | Location | Event 13 | -11/Scrapyard | Discovered new exit (range 16) 163 | -11/Scrapyard | Entered Materials 302 | -10/Materials | Build established: Mutant 497 | -10/Materials | Discovered new exit (range 12) 724 | -10/Materials | Discovered new exit (range 12) 861 | -10/Materials | Core integrity fell below 50% 895 | -10/Materials | Lost 4 parts (1p1n1u1w) 1316 | -10/Materials | Build established: Scavenger-Mutant 1387 | -10/Materials | Discovered new exit (range 9) 1482 | -10/Materials | Discovered new exit (range 9) 1497 | -10/Materials | Identified exit to Mines 1603 | -10/Materials | Entered Mines 1797 | -10/Mines | Discovered new exit (range 8) 1800 | -10/Mines | Learned location of Storage (-8) 1899 | -10/Mines | Build established: Mutant 1902 | -10/Mines | Assembled infested the area 1908 | -10/Mines | Discovered new exit (range 10) 1913 | -10/Mines | Core integrity fell below 20% 1913 | -10/Mines | Destroyed by D-53 Grenadier with Mini Grenade Launcher Last Messages --------------- 01800_ T-07 Excavator is excavating. 01800_ Acquired derelict log, extracted data. World map updated: -8/Storage. 01804_ T-07 Excavator is excavating. 01853_ System corrupted: Matter fused (-5). 01888_ K-01 Serf collects debris. 01902_ ALERT: Infestation in the mines, dispatching Demolisher response squad. 01908_ C-45 Heavy ARC bursts open, deploying its payload. 01908_ D-53 Grenadier unfolds itself. 01908_ IB-5LE(g) destroyed. 01908_ EXIT=FOUND 01909_ Lgt. Treads destroyed. 01909_ 2Y-IFK(z) destroyed. 01911_ The unstable cave ceiling collapses. 01911_ Assault Rifle destroyed. 01913_ The unstable cave ceiling collapses. 01913_ Lgt. Nuclear Core destroyed. 01913_ Grenade Launcher destroyed. Map ----- +----------------------------------------------------+ | | | | | | | | | | | | | | | | | | | | | | | | | ??##################??????????????????? | | #######################?###??####?????? | | #### ######## ??#####????? | | ## ### ?? ###????? | | ######### ?? """ ##????? | | ########### ?? """ < ##????? | | ####??????### #### """ ##?????? | | ####???????## ##### ###?????? | | # ! ############ ## ##?????? | | ## ########### ## # ##?????? | | ### [ ##=# d ##?###?? | | ### [ # d # ###? | | ### ################# ##? | | ## ################# @ ##? | | # ###????????????## ##? | | ##?????????????### ##? | | # ###?????????????### # """ ##? | | ######??????????????### # ### """ ##? | | ####????????????????###########??""???? | | ?????????????????????#########???? ???? | | ??????????????????????????????????????? | | ??????????????????????????????????????? | | ??????????????????????????????????????? | | ??????????????????????????????????????? | | ??????????????????????????????????????? | | ??????????????????????????????????????? | | ??????????????????????????????????????? | | ??????????????????????????????????????? | | ??????????????????????????????????????? | | ##????????????????????????????????????? | | ##????????????????????????????????????? | | ##????????????????????????????????????? | | ??????????????????????????????????????? | | ??????????????????????????????????????? | | ??????????????????????????????????????? | | ??????????????????????????????????????? | | ??????????????????????????????????????? | | ??????????????????????????????????????? | +----------------------------------------------------+ Best States ------------- Heat Dissipation 25 Energy Generation 14 Energy Capacity 250 Matter Stores 300 Matter Capacity 300 Sight Range 16 Terrain Scan Range 16 Terrain Scan Density 85 Evasion (%) 55 Recoil Reduction 2 Item Schematics ----------------- None Robot Schematics ------------------ None Fabricated ------------ Nothing Repaired ---------- Nothing Studied --------- None Alien Tech Used ----------------- None Achievements -------------- None Challenges ------------ None Game ------ Seed SmartSigixSlamshotty Manual? 0 Play Time 00:10:42 Cumulative 64.1 hours Start 2026.02.11 @ 23:59:53 End 2026.02.12 @ 00:09:20 Sessions 1 Manual Loads 0 Difficulty Rogue Special Mode None Game No. 110 Rogue 110 Adventurer 0 Explorer 0 Win Type - Total 0 Types 0/0/0/0/0/0/0/0/0/0 Lore% 35 Gallery% 40 Achievement% 29 Wizard Run 0 Options --------- Layout 1 ASCII 0 Keyboard 1 Movement Arrows Keybinds 0 Fullscreen 1 Font 24/Smallcaps Map View 50x35 Zoom Use 0% Tactical HUD 1 Map Filters NONE Filters NONE Steam 1 RUN: 7905cb22-aa7d-49f8-a282-5460a2e2a0f8